bitfinex-derivatives/quotes_SOLF0:USTF0_20241230
["timestamp","ask_amount","ask_price","bid_price","bid_amount"]
[1735577987915,2.6753,187.24,187.2,2.6758]
[1735577988113,12.35672954,187.26,187.19,2.6759]
[1735577988416,12.35672954,187.26,187.16,3.48009]
[1735577988718,34.58830576,187.29,187.17,12.35672954]
[1735577989422,37.26300576,187.29,187.25,2.675]
[1735577989715,12.35672954,187.29,187.21,3.28]
[1735577989914,15.03132954,187.29,187.21,3.28]
[1735577990415,2.6747,187.28,187.25,2.6751]
[1735577990810,3.086,187.31,187.21,3.28]
[1735577991013,2.6746,187.29,187.26,2.675]
[1735577991320,3.086,187.31,187.21,3.28]
[1735577991712,3.086,187.31,187.27,2.6747]
[1735577991713,5.7604,187.31,187.27,2.6747]
[1735577992113,22.23157622,187.35,187.26,12.35672954]
[1735577992318,2.6739,187.34,187.26,15.63672954]
[1735577993120,2.6739,187.34,187.31,2.6742]
[1735577993321,24.90517622,187.36,187.26,15.63672954]
[1735577993522,22.23157622,187.36,187.29,12.35672954]
[1735577993827,22.23157622,187.39,187.33,2.6739]
[1735577994024,2.6734,187.37,187.29,12.35672954]
[1735577994324,2.6734,187.37,187.33,2.6738]
[1735577994522,24.90467622,187.39,187.32,3.28]
[1735577994721,22.23157622,187.39,187.32,3.28]
[1735577994922,12.35672954,187.41,187.32,3.28]
[1735577995225,2.6731,187.4,187.32,3.28]
[1735577995416,2.6731,187.4,187.32,15.63672954]
[1735577996127,12.35672954,187.44,187.32,15.63672954]
[1735577996427,12.35672954,187.44,187.35,2.6736]
[1735577996726,2.6727,187.42,187.32,15.63672954]
[1735577997627,2.6727,187.42,187.37,2.6733]
[1735577998627,2.6729,187.41,187.37,2.6733]
[1735577999031,12.35672954,187.44,187.32,15.63672954]
[1735577999322,12.35672954,187.44,187.32,12.35672954]
[1735577999526,12.35672954,187.41,187.33,3.28]
[1735577999725,2.6734,187.38,187.34,2.6738]
[1735578000327,12.35672954,187.41,187.35,2.6737]
[1735578000633,2.6733,187.38,187.35,2.6737]
[1735578001227,2.6733,187.38,187.34,2.6738]
[1735578001929,2.6733,187.38,187.35,2.6737]
[1735578002126,2.6733,187.38,187.32,3.28]
[1735578002321,12.35672954,187.41,187.3,2.9897]
[1735578002527,12.35672954,187.38,187.26,12.35672954]
[1735578002728,12.35672954,187.38,187.27,3.28]
[1735578002931,12.35672954,187.38,187.28,3.28]
[1735578003321,2.674,187.34,187.3,2.6744]
[1735578003527,12.35672954,187.38,187.28,3.28]
[1735578003922,2.6741,187.32,187.28,5.9546]
[1735578004628,2.6741,187.33,187.29,2.6744]
[1735578005125,15.48302954,187.38,187.28,5.9547]
[1735578005335,12.35672954,187.35,187.23,12.35672954]
[1735578005727,2.6744,187.31,187.27,2.6748]
[1735578005930,2.6744,187.31,187.27,2.89446]
[1735578006220,12.35672954,187.35,187.27,0.21966]
[1735578006426,2.6746,187.29,187.27,0.21966]
[1735578007133,12.35672954,187.35,187.27,0.21966]
[1735578007523,2.6742,187.32,187.27,0.21966]
[1735578007931,4.8118,187.37,187.27,0.21966]
[1735578008227,2.6741,187.33,187.27,0.21966]
[1735578008427,4.8118,187.37,187.27,0.21966]
[1735578008732,2.6743,187.31,187.28,2.6746]
[1735578009431,4.8118,187.37,187.27,0.21966]
[1735578009932,2.6738,187.34,187.3,2.6744]
[1735578010325,2.6738,187.34,187.27,0.21966]
[1735578010528,3.1263,187.38,187.29,12.35672954]
[1735578010732,1.6365,187.38,187.29,12.35672954]
[1735578012030,12.35672954,187.41,187.29,12.35672954]
[1735578012234,12.35672954,187.41,187.29,13.94532954]
[1735578012627,2.6734,187.38,187.34,2.6738]
[1735578012829,12.35672954,187.41,187.34,2.6738]
[1735578014327,12.35672954,187.41,187.33,2.6739]
[1735578014635,12.35672954,187.41,187.29,13.94532954]
[1735578014821,6.4448,187.42,187.29,2.6744]
[1735578014822,2.6742,187.32,187.29,2.6744]
[1735578015025,12.35672954,187.35,187.27,0.21966]
[1735578016026,4.7591,187.36,187.27,0.21966]
[1735578016427,12.35672954,187.38,187.29,12.35672954]
[1735578016638,17.11582954,187.41,187.33,2.6739]
[1735578017328,17.11582954,187.41,187.35,2.6737]
[1735578017730,2.6731,187.4,187.35,2.6737]
[1735578017928,13.83582954,187.41,187.36,2.6735]
[1735578018133,13.83582954,187.41,187.3,3.0809]
[1735578018434,2.6732,187.39,187.35,2.6736]
[1735578018636,3.1648,187.42,187.32,12.35672954]
[1735578019034,2.6727,187.42,187.38,2.6732]
[1735578019639,2.6726,187.43,187.39,2.673]
[1735578020435,2.6726,187.43,187.35,12.35672954]
[1735578020436,2.6726,187.43,187.4,2.6729]
[1735578021339,15.43862954,187.47,187.4,2.6729]
[1735578021340,22.23157622,187.52,187.41,12.35672954]
[1735578021738,2.6716,187.5,187.44,2.6724]
[1735578021938,2.6716,187.5,187.41,12.35672954]
[1735578022138,12.35672954,187.53,187.41,12.35672954]
[1735578022636,2.6721,187.47,187.42,2.6727]
[1735578022841,15.63672954,187.53,187.41,12.35672954]
[1735578023237,2.6721,187.47,187.43,2.6725]
[1735578024043,15.63672954,187.53,187.42,2.6726]
[1735578024641,2.6721,187.47,187.42,2.6726]
[1735578024843,2.6721,187.47,187.41,12.35672954]
[1735578025034,15.63672954,187.53,187.41,12.35672954]
[1735578025439,2.6718,187.49,187.45,2.6721]
[1735578025944,2.6718,187.49,187.46,2.6721]
[1735578026341,2.6715,187.51,187.46,2.6721]
[1735578027044,2.6716,187.5,187.46,2.6721]
[1735578027244,2.6716,187.5,187.41,17.00332954]
[1735578027245,4.8398,187.54,187.48,2.6718]
[1735578027546,12.35672954,187.53,187.41,17.00332954]
[1735578027846,12.35672954,187.53,187.45,2.6723]
[1735578028146,2.6718,187.49,187.45,2.6723]
[1735578028438,12.35672954,187.53,187.43,2.6724]
[1735578028638,12.35672954,187.53,187.41,17.00332954]
[1735578029045,12.35672954,187.53,187.45,2.6722]
[1735578029345,12.35672954,187.53,187.41,17.00332954]
[1735578030139,2.6719,187.48,187.41,17.00332954]
[1735578030341,3.2093,187.54,187.41,17.00332954]
[1735578030845,2.6713,187.52,187.41,17.00332954]
[1735578031146,12.35672954,187.56,187.44,12.35672954]
[1735578031337,2.6711,187.53,187.49,2.6716]
[1735578031540,2.6711,187.53,187.45,3.28]
[1735578031541,15.63672954,187.56,187.45,3.28]
[1735578031742,3.28,187.56,187.45,3.28]
[1735578032047,12.35672954,187.55,187.45,3.28]
[1735578032245,12.35672954,187.47,187.29,22.23977241]
[1735578032440,2.6726,187.43,187.35,20.28552954]
[1735578033150,2.6726,187.43,187.4,2.6729]
[1735578033346,4.7108,187.49,187.4,3.28]
[1735578033848,2.6721,187.47,187.4,3.28]
[1735578034251,3.28,187.5,187.46,2.6721]
[1735578034549,12.35672954,187.53,187.41,12.35672954]
[1735578034747,12.35672954,187.53,187.47,2.6719]
[1735578035145,2.6715,187.51,187.47,2.6719]
[1735578037653,3.28,187.54,187.44,12.35672954]
[1735578037951,4.6126,187.55,187.47,12.35672954]
[1735578038252,2.6711,187.53,187.5,2.6715]
[1735578038751,12.35672954,187.59,187.47,12.35672954]
[1735578038954,2.671,187.55,187.51,2.6714]
[1735578039147,12.35672954,187.59,187.47,12.35672954]
[1735578039343,2.6707,187.57,187.53,2.671]
[1735578039547,2.6707,187.57,187.5,3.28]
[1735578039750,2.6707,187.57,187.5,15.63672954]
[1735578040049,2.6707,187.57,187.53,2.671]
[1735578041456,2.6707,187.57,187.5,15.63672954]
[1735578041750,2.6707,187.57,187.54,2.6709]
[1735578043057,2.6703,187.59,187.55,2.6708]
[1735578044259,2.6702,187.6,187.56,2.6706]
[1735578046151,2.67,187.61,187.57,2.6705]
[1735578046949,2.6701,187.6,187.57,2.6705]
[1735578047152,2.6701,187.6,187.56,2.6707]
[1735578047755,2.6704,187.58,187.54,2.6709]
[1735578049652,5.36547873,187.62,187.52,1.6251]
[1735578049955,2.6701,187.61,187.53,12.35672954]
[1735578050161,12.35672954,187.65,187.52,1.6251]
[1735578050353,2.6702,187.6,187.53,12.35672954]
[1735578050556,12.35672954,187.65,187.53,12.35672954]
[1735578050860,2.6699,187.62,187.58,2.6703]
[1735578051056,12.35672954,187.65,187.56,3.28]
[1735578051356,4.6675,187.67,187.56,15.63672954]
[1735578051659,2.6694,187.66,187.56,15.63672954]
[1735578053262,2.669,187.68,187.59,12.35672954]
[1735578054663,12.35672954,187.71,187.56,3.28]
[1735578054864,2.6693,187.67,187.58,12.35672954]
[1735578055062,12.35672954,187.71,187.58,12.35672954]
[1735578055269,2.669,187.68,187.64,2.6694]
[1735578055764,2.6692,187.67,187.64,2.6694]
[1735578055973,12.35672954,187.71,187.64,2.6696]
[1735578056556,12.35672954,187.71,187.61,3.28]
[1735578057162,2.669,187.69,187.65,2.6693]
[1735578057567,2.6694,187.66,187.61,3.28]
[1735578057766,2.6694,187.66,187.63,2.6696]
[1735578058167,2.6694,187.66,187.61,3.28]
[1735578058467,2.6694,187.66,187.62,2.6697]
[1735578058866,2.6694,187.66,187.59,20.34652954]
[1735578059771,12.35672954,187.71,187.59,20.34652954]
[1735578060864,12.35672954,187.68,187.56,12.35672954]
[1735578061068,2.6698,187.63,187.57,3.28]
[1735578061667,12.35672954,187.65,187.53,17.06042954]
[1735578061872,3.28,187.64,187.53,17.06042954]
[1735578062070,12.35672954,187.62,187.5,15.63672954]
[1735578062272,2.6707,187.57,187.53,2.6711]
[1735578062864,2.6707,187.57,187.5,12.35672954]
[1735578063168,2.6705,187.58,187.54,2.671]
[1735578063368,12.35672954,187.63,187.5,12.35672954]
[1735578063569,15.63672954,187.63,187.58,2.6704]
[1735578063773,18.30652954,187.63,187.58,2.6704]
[1735578063968,5.9498,187.63,187.58,2.6704]
[1735578064369,3.0533,187.64,187.61,2.67]
[1735578064669,5.9494,187.65,187.61,2.67]
[1735578065766,3.28,187.65,187.62,2.6698]
[1735578065973,3.28,187.65,187.56,12.35672954]
[1735578066375,3.28,187.65,187.62,2.6697]
[1735578066575,5.9495,187.65,187.56,12.35672954]
[1735578066970,5.9495,187.65,187.61,2.67]
[1735578068478,5.9495,187.65,187.62,2.6698]
[1735578068674,2.6692,187.67,187.56,12.35672954]
[1735578068872,74.07869187,187.69,187.59,12.35672954]
[1735578068873,77.35869187,187.69,187.59,12.35672954]
[1735578069073,3.28,187.69,187.65,2.6693]
[1735578069277,2.6688,187.7,187.59,12.35672954]
[1735578069475,13.97472954,187.72,187.62,12.35672954]
[1735578069778,2.6687,187.7,187.67,2.6691]
[1735578070069,4.801,187.73,187.67,2.6691]
[1735578070272,2.6687,187.71,187.67,2.6691]
[1735578070472,4.801,187.73,187.62,12.35672954]
[1735578070769,2.669,187.68,187.6,12.35672954]
[1735578071168,4.801,187.73,187.63,12.35672954]
[1735578071371,12.35672954,187.75,187.63,15.63672954]
[1735578071677,12.35672954,187.75,187.64,1.541]
[1735578071881,2.6682,187.74,187.66,12.35672954]
[1735578072069,3.28,187.76,187.66,12.35672954]
[1735578072474,3.2097,187.77,187.66,12.35672954]
[1735578072675,3.2097,187.77,187.66,13.90832954]
[1735578072872,3.2097,187.77,187.69,2.6688]
[1735578073178,2.668,187.75,187.66,13.90832954]
[1735578073982,3.28,187.78,187.69,12.35672954]
[1735578074278,3.28,187.78,187.73,2.6682]
[1735578074482,2.6678,187.77,187.73,2.6682]
[1735578074979,2.6679,187.76,187.73,2.6682]
[1735578075968,2.6679,187.76,187.72,2.6684]
[1735578076170,12.35672954,187.78,187.68,3.28]
[1735578076575,2.6683,187.73,187.7,2.6687]
[1735578076771,3.28,187.75,187.66,12.35672954]
[1735578077369,2.6687,187.71,187.67,2.6691]
[1735578077571,15.63672954,187.75,187.63,12.35672954]
[1735578078572,2.6685,187.72,187.68,2.6689]
[1735578078771,15.63672954,187.75,187.68,2.6689]
[1735578079378,2.6685,187.72,187.68,2.6689]
[1735578081780,12.35672954,187.76,187.68,2.6689]
[1735578081973,12.35672954,187.76,187.66,5.9491]
[1735578082180,12.35672954,187.76,187.64,13.89772954]
[1735578082181,12.35672954,187.76,187.64,12.35672954]
[1735578082486,2.6691,187.68,187.62,3.28]
[1735578083478,3.28,187.72,187.62,3.28]
[1735578083683,2.6687,187.71,187.62,3.28]
[1735578083885,3.28,187.72,187.62,3.28]
[1735578084085,2.6689,187.69,187.66,2.6692]
[1735578084280,3.28,187.72,187.64,12.35672954]
[1735578084786,12.35672954,187.76,187.64,12.35672954]
[1735578085085,3.28,187.78,187.67,12.35672954]
[1735578085284,2.6682,187.74,187.67,15.63672954]
[1735578085480,3.28,187.78,187.67,15.63672954]
[1735578085783,3.28,187.78,187.7,12.35672954]
[1735578085983,2.6677,187.77,187.7,12.35672954]
[1735578086190,59.34624674,187.82,187.7,12.35672954]
[1735578086387,3.28,187.82,187.7,12.35672954]
[1735578086683,2.6675,187.79,187.75,2.6679]
[1735578087481,2.6676,187.78,187.75,2.6679]
[1735578088089,2.6676,187.78,187.7,12.35672954]
[1735578088381,2.6676,187.78,187.74,2.6681]
[1735578089687,3.28,187.82,187.7,12.35672954]
[1735578089888,2.6676,187.78,187.7,12.35672954]
[1735578090084,12.35672954,187.83,187.7,12.35672954]
[1735578090285,3.28,187.82,187.7,12.35672954]
[1735578090786,2.6677,187.77,187.74,2.6681]
[1735578091182,3.28,187.82,187.7,12.35672954]
[1735578091886,2.6675,187.79,187.7,12.35672954]
[1735578092589,15.63672954,187.83,187.7,12.35672954]
[1735578093292,2.6679,187.76,187.7,12.35672954]
[1735578094291,15.63672954,187.83,187.7,12.35672954]
[1735578094492,2.6678,187.77,187.7,12.35672954]
[1735578095091,2.6678,187.77,187.73,2.6682]
[1735578095596,2.6678,187.77,187.7,12.35672954]
[1735578095995,2.6677,187.78,187.7,12.35672954]
[1735578097192,2.6677,187.78,187.74,2.668]
[1735578097399,4.8895,187.84,187.73,12.35672954]
[1735578097903,4.8895,187.84,187.77,2.6676]
[1735578098103,1.6095,187.84,187.73,12.35672954]
[1735578098402,2.6676,187.78,187.73,12.35672954]
[1735578098994,2.6678,187.77,187.73,12.35672954]
[1735578099499,2.6678,187.77,187.74,2.668]
[1735578099908,3.28,187.8,187.71,3.28]
[1735578100098,15.63672954,187.8,187.72,2.6683]
[1735578100293,2.9682,187.79,187.72,2.6683]
[1735578100697,2.6681,187.75,187.72,2.6683]
[1735578101294,2.6681,187.75,187.73,2.6683]
[1735578101498,2.9682,187.79,187.7,12.35672954]
[1735578101905,2.9682,187.79,187.75,2.6679]
[1735578102105,2.6676,187.78,187.75,2.6679]
[1735578103710,2.6675,187.79,187.76,2.6677]
[1735578104807,2.6676,187.78,187.76,2.6677]
[1735578105912,2.6677,187.77,187.74,2.668]
[1735578106302,2.6677,187.77,187.7,12.35672954]
[1735578106507,12.35672954,187.83,187.7,12.35672954]
[1735578106807,2.6676,187.78,187.75,2.6679]
[1735578107313,12.35672954,187.83,187.7,12.35672954]
[1735578107511,12.35672954,187.83,187.73,2.6681]
[1735578108012,2.6679,187.76,187.73,2.6681]
[1735578108510,2.6679,187.76,187.74,2.6681]
[1735578109313,2.6678,187.77,187.74,2.6681]
[1735578109715,2.6682,187.74,187.7,15.63672954]
[1735578110007,3.28,187.78,187.68,3.0539]
[1735578110206,3.28,187.78,187.66,15.63672954]
[1735578110405,17.04342954,187.77,187.66,15.63672954]
[1735578110604,17.04342954,187.77,187.66,3.28]
[1735578112412,2.6686,187.71,187.68,2.6689]
[1735578112817,34.15675609,187.76,187.63,3.28]
[1735578113020,12.35672954,187.74,187.65,2.6694]
[1735578113315,15.63672954,187.74,187.65,2.6694]
[1735578113520,2.669,187.68,187.62,15.63672954]
[1735578113722,12.35672954,187.71,187.6,0.27652]
[1735578113920,4.6323,187.7,187.6,0.27652]
[1735578114219,3.28,187.69,187.6,0.27652]
[1735578115225,12.35672954,187.68,187.6,0.27652]
[1735578115418,2.67,187.61,187.6,0.27652]
[1735578115824,3.28,187.63,187.53,12.35672954]
[1735578116123,3.28,187.62,187.53,12.35672954]
[1735578117515,2.6702,187.6,187.53,12.35672954]
[1735578117720,3.28,187.62,187.53,12.35672954]
[1735578118122,15.63672954,187.62,187.5,12.35672954]
[1735578118321,4.5306,187.61,187.5,12.35672954]
[1735578119525,2.6707,187.57,187.52,2.6711]
[1735578119725,4.5306,187.61,187.52,2.6711]
[1735578120125,2.6708,187.56,187.51,2.6714]
[1735578120524,3.28,187.57,187.47,12.35672954]
[1735578121327,2.6711,187.54,187.49,2.6717]
[1735578121626,3.28,187.57,187.47,12.35672954]
[1735578122427,3.28,187.57,187.44,104.28333044]
[1735578122428,12.35672954,187.56,187.44,104.28333044]
[1735578122727,12.35672954,187.53,187.44,91.9266009]
[1735578122925,2.6717,187.49,187.45,2.6723]
[1735578123127,2.6717,187.49,187.41,12.35672954]
[1735578123626,3.28,187.52,187.44,2.6723]
[1735578123926,2.6716,187.5,187.41,12.35672954]
[1735578124325,2.6716,187.5,187.46,2.6721]
[1735578124728,5.9514,187.52,187.44,12.35672954]
[1735578124919,3.28,187.52,187.48,2.6717]
[1735578125118,12.35672954,187.56,187.4,3.28]
[1735578125119,2.6709,187.55,187.47,12.35672954]
[1735578125423,3.28,187.57,187.47,12.35672954]
[1735578125627,3.28,187.57,187.5,2.6716]
[1735578125829,3.28,187.57,187.47,12.35672954]
[1735578126230,3.28,187.57,187.45,3.28]
[1735578126431,12.35672954,187.56,187.44,12.35672954]
[1735578127027,2.6717,187.5,187.45,2.6722]
[1735578127219,2.6717,187.5,187.44,12.35672954]
[1735578127430,3.28,187.52,187.44,12.35672954]
[1735578128031,3.28,187.52,187.41,3.28]
[1735578128227,2.6717,187.49,187.45,2.6722]
[1735578128431,3.28,187.53,187.43,12.35672954]
[1735578128633,3.28,187.53,187.49,2.6717]
[1735578128825,12.35672954,187.59,187.46,12.35672954]
[1735578129029,3.28,187.57,187.46,15.63672954]
[1735578129328,5.9507,187.57,187.52,2.6711]
[1735578129524,4.5306,187.61,187.52,12.35672954]
[1735578129728,7.8106,187.61,187.52,12.35672954]
[1735578129930,2.6703,187.59,187.55,2.6707]
[1735578130326,2.6703,187.59,187.56,2.6707]
[1735578130532,3.28,187.62,187.55,12.35672954]
[1735578131230,2.6701,187.61,187.57,2.6705]
[1735578131431,3.28,187.62,187.55,12.35672954]
[1735578131836,3.28,187.62,187.52,12.35672954]
[1735578132034,15.63672954,187.62,187.49,12.35672954]
[1735578132435,12.35672954,187.59,187.49,12.35672954]
[1735578132838,2.6709,187.55,187.51,2.6714]
[1735578133038,3.28,187.57,187.49,12.35672954]
[1735578133733,2.6711,187.54,187.51,2.6714]
[1735578134336,2.6709,187.55,187.51,2.6714]
[1735578135033,12.35672954,187.59,187.49,12.35672954]
[1735578135237,3.28,187.6,187.52,12.35672954]
[1735578135429,16.18825678,187.64,187.52,12.35672954]
[1735578135633,2.6701,187.61,187.57,2.6705]
[1735578135833,3.28,187.63,187.57,2.6705]
[1735578136235,2.6699,187.62,187.57,2.6705]
[1735578136440,3.28,187.63,187.57,2.6705]
[1735578136635,3.28,187.63,187.55,2.6707]
[1735578136938,3.28,187.63,187.52,12.35672954]
[1735578137333,2.6702,187.6,187.52,12.35672954]
[1735578137539,3.28,187.63,187.52,12.35672954]
[1735578137839,3.28,187.63,187.52,15.63672954]
[1735578138033,2.6701,187.6,187.52,15.63672954]
[1735578138434,3.28,187.63,187.55,12.35672954]
[1735578138637,17.11142954,187.67,187.55,12.35672954]
[1735578138836,8.0347,187.67,187.58,12.35672954]
[1735578139639,8.0347,187.67,187.6,2.6701]
[1735578140635,6.4887,187.67,187.58,12.35672954]
[1735578140841,6.4887,187.67,187.61,2.67]
[1735578141445,3.28,187.69,187.63,2.6697]
[1735578142042,3.28,187.7,187.64,2.6695]
[1735578142339,18.71762954,187.73,187.61,12.35672954]
[1735578143237,2.669,187.69,187.64,2.6694]
[1735578143540,2.669,187.69,187.61,12.35672954]
[1735578143745,2.6687,187.7,187.66,2.6693]
[1735578145836,2.6685,187.72,187.64,12.35672954]
[1735578146241,3.28,187.75,187.64,12.35672954]
[1735578146940,2.6686,187.72,187.64,12.35672954]
[1735578147141,3.28,187.75,187.64,12.35672954]
[1735578147645,2.6685,187.72,187.68,2.669]
[1735578148247,3.28,187.75,187.64,12.35672954]
[1735578149944,2.6685,187.72,187.64,12.35672954]
[1735578150134,3.28,187.75,187.64,12.35672954]
[1735578150542,3.28,187.75,187.61,15.63672954]
[1735578150942,3.28,187.75,187.66,2.6692]
[1735578151541,2.6688,187.7,187.66,2.6692]
[1735578151744,3.28,187.75,187.67,2.669]
[1735578152344,1.5807,187.79,187.61,15.63672954]
[1735578152345,117.77203617,187.83,187.68,2.6689]
[1735578152544,12.35672954,187.77,187.68,2.6689]
[1735578152946,12.35672954,187.74,187.65,2.6693]
[1735578153147,12.35672954,187.74,187.61,15.63672954]
[1735578153342,2.6687,187.71,187.61,15.63672954]
[1735578153550,3.28,187.71,187.64,2.6695]
[1735578154154,3.28,187.71,187.65,2.6693]
[1735578154349,3.28,187.78,187.64,12.35672954]
[1735578154552,15.63672954,187.78,187.64,12.35672954]
[1735578154847,2.6685,187.72,187.64,12.35672954]
[1735578155250,15.63672954,187.78,187.69,2.6688]
[1735578155944,2.6684,187.73,187.69,2.6688]
[1735578156141,2.6684,187.73,187.7,2.6686]
[1735578156441,2.6684,187.73,187.67,12.35672954]
[1735578156750,2.6685,187.72,187.67,12.35672954]
[1735578157647,2.6685,187.72,187.69,2.6688]
[1735578157849,3.28,187.78,187.68,3.1187]
[1735578158150,2.6684,187.73,187.7,2.6687]
[1735578158653,2.6685,187.72,187.69,2.6688]
[1735578158944,15.63672954,187.73,187.61,12.35672954]
[1735578159143,2.6693,187.66,187.61,12.35672954]
[1735578159547,3.28,187.72,187.61,12.35672954]
[1735578160249,2.6689,187.69,187.66,2.6692]
[1735578160449,2.6689,187.69,187.64,12.35672954]
[1735578160651,2.6689,187.69,187.65,2.6693]
[1735578160853,2.6689,187.69,187.64,12.35672954]
[1735578161447,2.6689,187.69,187.66,2.6691]
[1735578161952,15.63672954,187.76,187.65,3.28]
[1735578162148,15.63672954,187.76,187.67,12.35672954]
[1735578162149,3.28,187.76,187.67,12.35672954]
[1735578162652,3.28,187.78,187.67,12.35672954]
[1735578163053,2.668,187.75,187.67,12.35672954]
[1735578163354,37.56364731,187.79,187.67,12.35672954]
[1735578163654,2.6679,187.76,187.72,2.6683]
[1735578163954,12.35672954,187.82,187.7,15.63672954]
[1735578164251,12.35672954,187.82,187.71,3.28]
[1735578164452,7.06025544,187.83,187.71,3.28]
[1735578164654,7.06025544,187.83,187.72,1.6159]
[1735578164848,3.28,187.83,187.73,12.35672954]
[1735578165051,3.28,187.83,187.73,15.54332954]
[1735578165951,15.63672954,187.85,187.76,2.6679]
[1735578166554,12.35672954,187.85,187.73,15.54332954]
[1735578168155,2.6675,187.79,187.75,2.6679]
[1735578168357,12.35672954,187.85,187.73,15.54332954]
[1735578169258,2.6672,187.81,187.77,2.6677]
[1735578169763,2.6673,187.8,187.77,2.6677]
[1735578170658,2.6673,187.8,187.76,2.6678]
[1735578172545,2.6673,187.8,187.77,2.6677]
[1735578172946,2.6673,187.8,187.73,15.54332954]
[1735578173153,2.6678,187.77,187.73,15.54332954]
[1735578173351,15.63672954,187.82,187.73,1.5923]
[1735578173949,15.63672954,187.82,187.75,2.668]
[1735578174157,3.28,187.82,187.73,13.94902954]
[1735578174454,2.6674,187.8,187.77,2.6677]
[1735578174658,2.6674,187.8,187.73,13.94902954]
[1735578175358,2.6674,187.8,187.77,2.6677]
[1735578176757,3.28,187.85,187.78,2.6675]
[1735578177157,3.28,187.85,187.73,13.94902954]
[1735578177360,3.28,187.85,187.76,12.35672954]
[1735578177552,3.28,187.85,187.76,15.63672954]
[1735578177749,21.92691777,187.89,187.76,15.63672954]
[1735578177953,3.28,187.88,187.8,2.6673]
[1735578178247,15.63672954,187.89,187.76,15.63672954]
[1735578178459,2.6667,187.85,187.81,2.667]
[1735578178948,2.6667,187.84,187.81,2.667]
[1735578179154,15.63672954,187.89,187.79,2.6673]
[1735578179349,12.35672954,187.89,187.79,2.6673]
[1735578179552,2.667,187.83,187.76,3.28]
[1735578179755,2.667,187.83,187.79,2.6673]
[1735578180254,3.28,187.88,187.79,2.6673]
[1735578180255,2.6665,187.86,187.79,2.6673]
[1735578180455,3.28,187.88,187.79,2.6673]
[1735578180758,2.667,187.83,187.79,2.6673]
[1735578180954,2.667,187.83,187.76,3.28]
[1735578181153,2.667,187.83,187.8,2.6672]
[1735578182157,2.6666,187.85,187.82,2.667]
[1735578182462,39.01414731,187.91,187.78,12.35672954]
[1735578182666,2.6663,187.87,187.84,2.6667]
[1735578183060,39.01414731,187.91,187.79,1.6019]
[1735578183255,2.6665,187.86,187.79,1.6019]
[1735578184459,2.6665,187.86,187.81,2.6671]
[1735578184654,2.6665,187.86,187.81,3.28]
[1735578185156,12.35672954,187.94,187.81,15.63672954]
[1735578185359,12.35672954,187.94,187.84,12.35672954]
[1735578185559,12.35672954,187.94,187.87,2.6662]
[1735578185859,21.92691777,187.95,187.86,3.28]
[1735578186359,21.92691777,187.97,187.9,12.35672954]
[1735578187073,24.59191777,187.97,187.91,3.28]
[1735578187456,24.59191777,187.97,187.93,2.6654]
[1735578187762,24.59191777,187.97,187.91,3.28]
[1735578188167,2.665,187.97,187.92,2.6656]
[1735578188363,2.665,187.96,187.92,2.6656]
[1735578188654,12.35672954,188.02,187.91,3.28]
[1735578188862,2.6651,187.96,187.91,5.9457]
[1735578189462,12.35672954,187.99,187.88,1.4835]
[1735578189764,3.28,187.98,187.87,1.592]
[1735578190365,12.35672954,187.96,187.87,1.592]
[1735578191069,2.6654,187.94,187.88,2.6661]
[1735578191262,12.35672954,187.96,187.87,1.592]
[1735578191462,1.57,187.97,187.87,1.592]
[1735578191662,2.6649,187.97,187.89,12.35672954]
[1735578191876,2.6649,187.97,187.9,3.28]
[1735578192362,2.665,187.96,187.92,2.6656]
[1735578192562,12.35672954,188.01,187.9,3.28]
[1735578193769,12.35672954,188.01,187.9,5.9457]
[1735578194173,2.6653,187.95,187.91,2.6657]
[1735578195370,2.6653,187.94,187.91,2.6657]